bitfinex/quotes_ETHUSD_20260106
["timestamp","ask_amount","ask_price","bid_price","bid_amount"]
[1767678467802,0.96823826,3214.3,3213.3,0.97841528]
[1767678468083,4.08025615,3214.4,3213.3,0.97841528]
[1767678468254,0.96823826,3214.3,3213.3,0.97841528]
[1767678468461,0.96823826,3214.3,3213.0,1.79441528]
[1767678468779,0.96823826,3214.3,3213.1,0.97841528]
[1767678468989,0.001,3214.4,3213.3,0.97841528]
[1767678469178,0.96923826,3214.4,3213.3,0.97841528]
[1767678469574,0.96923826,3214.4,3213.5,0.97841528]
[1767678469771,0.96923826,3214.4,3213.6,1.79441528]
[1767678469989,0.96923826,3214.4,3213.7,0.97841528]
[1767678470578,0.96923826,3214.4,3213.6,0.816]
[1767678471296,0.001,3214.4,3213.7,0.97841528]
[1767678471688,0.001,3214.1,3213.7,0.97841528]
[1767678471997,0.001,3214.1,3213.8,0.97841528]
[1767678472396,0.001,3214.1,3213.9,0.97841528]
[1767678473493,0.001,3214.1,3213.8,0.49060894]
[1767678473699,0.001,3214.1,3213.9,0.97841528]
[1767678473912,0.001,3214.4,3214.1,0.97841528]
[1767678474204,0.001,3214.7,3214.2,0.97841528]
[1767678475774,48.95532238,3215.0,3214.3,0.98965514]
[1767678475775,48.001,3215.0,3214.3,0.98965514]
[1767678478018,48.95532238,3215.0,3214.3,0.98965514]
[1767678478423,48.95532238,3215.0,3214.3,4.10073277]
[1767678478605,44.57208684,3215.0,3214.4,0.98965514]
[1767678478805,37.71439699,3215.0,3214.6,0.98965514]
[1767678478992,34.60796347,3215.0,3214.7,1.80465514]
[1767678479693,34.60796347,3215.0,3214.7,0.815]
[1767678479912,34.60796347,3215.0,3214.8,0.98965514]
[1767678481931,34.60796347,3215.0,3214.8,0.91424096]
[1767678484907,34.60796347,3215.0,3214.7,0.815]
[1767678485118,33.91585763,3215.0,3214.6,0.815]
[1767678485332,0.92289416,3214.9,3214.6,0.815]
[1767678485532,32.99296347,3215.0,3214.6,0.815]
[1767678486811,33.91585763,3215.0,3214.6,0.815]
[1767678487015,0.92289416,3214.9,3214.6,0.815]
[1767678488659,32.99296347,3215.0,3214.6,0.815]
[1767678489160,33.91585763,3215.0,3214.9,0.01760823]
[1767678489720,0.92289416,3215.0,3214.9,0.01760823]
[1767678492928,0.92289416,3215.0,3214.0,0.93523861]
[1767678493150,0.92289416,3214.9,3214.1,1.60266993]
[1767678493350,0.92289416,3214.9,3214.1,0.78766993]
[1767678493667,0.92289416,3214.9,3214.0,0.815]
[1767678494030,0.92289416,3214.9,3214.1,0.93523861]
[1767678494742,0.92289416,3214.9,3214.0,4.86160449]
[1767678494946,0.92289416,3214.9,3214.0,1.75023861]
[1767678495255,0.92289416,3214.9,3214.1,0.93523861]
[1767678495460,0.92289416,3214.8,3214.0,0.815]
[1767678495831,0.92289416,3214.8,3214.5,0.002]
[1767678498565,0.92289416,3215.2,3214.5,0.002]
[1767678498770,0.001,3215.6,3214.5,0.002]
[1767678498771,0.92289416,3215.5,3214.6,0.93523861]
[1767678499252,0.92389416,3215.6,3214.6,0.93523861]
[1767678499764,4.03373618,3215.6,3214.6,0.93523861]
[1767678499938,0.92389416,3215.6,3214.6,0.93523861]
[1767678500780,0.92289416,3215.4,3214.5,3.92784738]
[1767678500981,0.92289416,3215.2,3214.6,0.39278474]
[1767678501189,0.92289416,3215.2,3214.6,0.4238928]
[1767678501865,0.92289416,3215.5,3214.7,0.93523861]
[1767678502183,0.92289416,3215.5,3214.8,0.03110613]
[1767678502383,0.92289416,3215.5,3214.8,0.96634474]
[1767678502584,0.92289416,3215.5,3214.8,1.41333469]
[1767678503087,0.92289416,3215.5,3214.8,0.93523861]
[1767678506280,0.001,3215.6,3214.9,0.96634377]
[1767678507485,0.001,3215.6,3214.9,0.93523861]
[1767678508153,0.001,3215.6,3214.6,3.11080365]
[1767678508358,0.92389416,3215.3,3214.6,3.11080365]
[1767678508584,0.001,3215.0,3214.7,0.39278036]
[1767678509584,1e-08,3215.0,3214.8,0.815]
[1767678510298,0.92389416,3215.3,3214.8,0.815]
[1767678511675,0.001,3215.3,3214.8,0.815]
[1767678513869,0.001,3215.3,3214.5,0.002]
[1767678513870,0.9040535,3215.3,3214.5,0.817]
[1767678514068,0.9040535,3215.3,3214.5,1.78942195]
[1767678514271,0.9040535,3215.3,3214.6,0.1789422]
[1767678514569,0.001,3215.3,3214.5,1.78942195]
[1767678514794,0.001,3215.3,3214.6,1.00353001]
[1767678515105,0.9040535,3215.3,3214.6,1.00353001]
[1767678515328,0.9040535,3215.3,3214.5,0.817]
[1767678515533,0.001,3215.3,3214.6,0.97242195]
[1767678515739,0.001,3215.3,3214.7,0.1789422]
[1767678515938,0.001,3215.3,3214.7,1.15136415]
[1767678517041,0.9040535,3215.3,3214.7,0.1789422]
[1767678517340,0.9040535,3215.3,3214.5,0.817]
[1767678517836,0.9040535,3215.3,3214.5,0.002]
[1767678518042,0.9030535,3215.1,3214.5,0.002]
[1767678518604,0.9030535,3215.1,3214.0,0.97242195]
[1767678518804,0.9030535,3215.0,3213.4,3.11191218]
[1767678519025,0.9030535,3215.0,3213.4,0.97242195]
[1767678519426,0.9030535,3215.0,3213.5,0.815]
[1767678519655,0.9030535,3214.7,3213.5,0.815]
[1767678519871,0.9030535,3214.7,3213.3,0.002]
[1767678520148,0.9030535,3214.5,3213.7,0.002]
[1767678521849,0.9030535,3214.3,3213.7,0.002]
[1767678522563,0.9030535,3214.3,3213.4,0.002]
[1767678523956,0.9030535,3214.1,3213.4,0.002]
[1767678524960,0.9030535,3214.1,3213.4,0.97442195]
[1767678525959,3.11112586,3214.3,3213.4,0.97442195]
[1767678527256,0.9030535,3214.2,3213.4,0.002]
[1767678528042,7.12563524,3214.1,3213.4,0.002]
[1767678529959,4.01434437,3214.1,3213.4,0.002]
[1767678530162,4.01434437,3214.1,3213.4,0.1811422]
[1767678532570,4.01434437,3214.1,3213.4,1.15356415]
[1767678532776,3.11129087,3214.1,3213.4,1.15356415]
[1767678533473,3.11080694,3214.6,3213.5,0.97242195]
[1767678533769,3.11080694,3214.6,3213.4,3.29310975]
[1767678533770,3.11080694,3214.6,3213.7,0.97242195]
[1767678534094,7.12473863,3214.6,3213.9,0.97242195]
[1767678534376,0.9030535,3214.5,3213.7,0.002]
[1767678535258,0.9030535,3214.5,3213.7,0.03311678]
[1767678535561,0.9030535,3214.5,3213.7,1.02716516]
[1767678536875,0.92517956,3214.3,3213.7,0.002]
[1767678537484,0.92517956,3214.3,3213.7,0.99604838]
[1767678537686,3.11100049,3214.4,3213.7,0.99604838]
[1767678538058,4.03618005,3214.4,3213.7,0.99604838]
[1767678539176,0.92517956,3214.4,3213.7,0.99604838]
[1767678539384,3.11101365,3214.4,3213.7,0.99604838]
[1767678540060,3.11101365,3214.4,3213.9,0.99404838]
[1767678540788,1.74017956,3214.7,3213.9,0.99404838]
[1767678541078,4.85093136,3214.7,3213.9,0.99404838]
[1767678541252,7.96168316,3214.7,3213.9,0.99404838]
[1767678541455,4.85093136,3214.7,3213.9,0.99404838]
[1767678541756,7.96168316,3214.7,3213.9,0.99404838]
[1767678543457,8.75785148,3214.7,3213.9,0.97946123]
[1767678544408,4.85093136,3214.7,3213.9,0.97946123]
[1767678544590,3.1107518,3214.7,3213.9,0.97946123]
[1767678545561,0.001,3215.0,3213.9,0.97946123]
[1767678545760,0.001,3215.0,3214.1,0.98603311]
[1767678546795,0.001,3214.4,3214.1,0.98603311]
[1767678546966,0.001,3215.0,3214.4,0.98603311]
[1767678547970,0.001,3215.3,3214.9,0.98603311]
[1767678548798,0.97998186,3215.9,3215.1,0.98603311]
[1767678548982,3.10957904,3215.9,3215.1,0.98603311]
[1767678549193,0.815,3216.0,3215.1,0.98603311]
[1767678549395,0.98060605,3216.1,3215.1,0.98603311]
[1767678550279,0.98060605,3216.1,3215.2,0.98603311]
[1767678550674,4.0899755,3216.1,3215.2,0.98603311]
[1767678556105,0.001,3216.2,3215.2,0.98603311]
[1767678556106,0.001,3216.2,3215.3,0.98603311]
[1767678558911,0.001,3216.5,3216.0,0.98603311]
[1767678559214,3.10997225,3216.5,3216.0,0.98603311]
[1767678559380,0.001,3216.5,3216.0,0.98603311]
[1767678559994,3.10997704,3216.5,3216.0,0.98603311]
[1767678560182,0.001,3216.5,3216.0,0.98603311]
[1767678566421,0.001,3216.5,3216.0,1.80103311]
[1767678566625,0.001,3216.5,3216.1,0.98603311]
[1767678571022,0.001,3216.2,3216.1,0.98603311]
[1767678571228,0.001,3216.5,3216.1,1.01234049]
[1767678572139,0.001,3216.5,3216.1,0.98603311]
[1767678572316,0.91064662,3216.5,3215.6,0.93083016]
[1767678572524,0.91064662,3216.5,3215.7,0.815]
[1767678572728,0.91064662,3216.5,3215.6,1.74583016]
[1767678572928,0.91064662,3216.5,3215.7,0.93083016]
[1767678575236,0.91064662,3216.5,3215.8,0.93083016]
[1767678575542,0.001,3216.5,3216.0,0.93083016]
[1767678575834,0.001,3216.5,3215.7,0.815]
[1767678575835,0.001,3216.5,3216.2,0.93083016]
[1767678576538,0.001,3216.5,3215.8,0.93083016]
[1767678576739,0.001,3216.5,3216.0,0.93083016]
[1767678576943,0.001,3216.5,3216.0,0.92977103]
[1767678577650,0.001,3216.5,3215.9,0.17458302]
[1767678578621,0.001,3216.5,3215.9,1.10541318]
[1767678580747,0.001,3216.5,3216.0,0.815]
[1767678581043,0.001,3216.5,3216.1,0.19204132]
[1767678581650,0.001,3216.5,3216.2,0.93083016]
[1767678583841,0.001,3216.5,3216.1,0.19204132]
[1767678586317,0.001,3216.5,3216.2,0.95710393]
[1767678587030,0.001,3216.9,3216.2,0.95710393]
[1767678587215,3.10958675,3216.9,3216.2,0.95710393]
[1767678587411,3.10958675,3216.9,3216.2,1.61703499]
[1767678587757,4.01923337,3216.9,3216.2,1.61703499]
[1767678588246,4.01923337,3216.9,3216.2,1.59076122]
[1767678588550,4.01923337,3216.9,3216.2,0.93083016]
[1767678589645,0.91064662,3216.9,3216.2,0.93083016]
[1767678589851,4.01924684,3216.9,3216.3,0.02628557]
[1767678590749,3.10819631,3217.3,3216.6,0.93083016]
[1767678590926,3.10819631,3217.3,3216.7,0.92950882]
[1767678591248,0.90964662,3217.4,3216.7,0.92950882]
[1767678591547,3.10792753,3217.6,3216.8,0.93083016]
[1767678592122,7.124687,3218.0,3216.8,0.93083016]
[1767678593525,0.90964662,3217.9,3216.8,0.93083016]
[1767678593725,1.62211532,3217.9,3216.9,0.93083016]
[1767678595452,3.10771334,3217.8,3216.9,0.93083016]
[1767678595649,4.01729263,3217.9,3216.9,0.93083016]
[1767678595955,0.90964662,3217.9,3217.1,0.9327751]
[1767678596142,0.90964662,3217.9,3217.2,1.7467751]
[1767678596143,0.001,3217.6,3217.2,1.7467751]
[1767678597253,0.001,3217.6,3217.2,0.814]
[1767678601553,0.95334379,3217.6,3216.9,0.814]
[1767678601853,0.95234379,3217.4,3216.6,0.002]
[1767678602036,0.95234379,3217.4,3216.7,0.814]
[1767678602452,0.95234379,3217.4,3216.6,0.002]
[1767678603447,0.95234379,3217.2,3216.6,0.002]
[1767678606049,4.06073333,3217.1,3216.6,0.002]
[1767678608163,0.95234379,3217.1,3216.6,0.002]
[1767678608333,4.06074668,3217.1,3216.6,0.002]
[1767678608744,0.001,3216.9,3216.6,0.002]
[1767678609560,0.95334379,3216.9,3216.6,0.002]
[1767678609763,0.95234379,3216.8,3216.3,0.002]
[1767678610831,4.06106801,3216.8,3216.3,0.002]
[1767678611036,0.95234379,3216.8,3216.3,0.002]
[1767678611569,4.06104848,3216.8,3216.3,0.002]
[1767678611773,0.95234379,3216.7,3216.3,0.002]
[1767678612668,4.06121651,3216.6,3216.3,0.002]
[1767678614841,0.95234379,3216.5,3216.3,0.002]
[1767678615047,0.95234379,3216.5,3215.8,1.7257479]
[1767678615559,0.95234379,3216.5,3215.8,0.9117479]
[1767678615761,0.95234379,3216.3,3215.2,0.9117479]
[1767678615953,0.95234379,3216.3,3215.4,0.9117479]
[1767678616151,0.95234379,3216.3,3215.5,1.7257479]
[1767678616739,4.06154376,3216.3,3215.6,0.814]
[1767678617269,0.95234379,3216.2,3215.5,1.7257479]
[1767678617452,1.74111906,3216.2,3215.5,0.9117479]
[1767678617655,1.74111906,3216.2,3215.5,1.7257479]
[1767678618055,1.74111906,3216.2,3215.5,0.9117479]
[1767678618254,1.74111906,3216.2,3215.5,1.7257479]
[1767678619075,4.8503805,3216.2,3215.5,1.7257479]
[1767678619249,4.8503805,3216.2,3215.5,0.9117479]
[1767678619445,4.06160523,3216.2,3215.5,1.7267479]
[1767678620872,4.06160523,3216.2,3215.8,0.002]
[1767678625382,0.95234379,3216.2,3215.8,0.002]
[1767678625783,3.1091956,3216.3,3215.8,0.002]
[1767678630261,6.2183912,3216.3,3215.8,0.002]
[1767678630784,7.17073499,3216.3,3215.8,0.002]
[1767678631164,7.8024358,3216.3,3215.8,0.002]
[1767678631679,0.94335058,3216.2,3215.8,0.002]
[1767678632051,0.94335058,3216.0,3215.8,0.002]
[1767678632452,0.94335058,3216.0,3215.5,0.002]
[1767678632974,6.2187121,3216.1,3215.5,0.002]
[1767678633152,6.2187121,3216.1,3215.8,0.002]
[1767678633885,6.99808845,3216.1,3215.8,0.002]
[1767678637388,7.94143903,3216.1,3215.8,0.002]
[1767678638060,7.94143903,3216.1,3215.5,0.002]
[1767678638262,0.94335058,3216.0,3215.5,0.002]
[1767678639504,0.94335058,3216.0,3215.3,0.99185894]
[1767678639505,3.10954942,3215.9,3215.3,0.99185894]
[1767678639705,0.94335058,3215.8,3215.1,0.99185894]
[1767678642091,0.77937635,3216.1,3215.1,0.99185894]
[1767678642092,0.94335058,3216.0,3215.1,0.99185894]
[1767678642293,0.94335058,3216.3,3215.3,0.99185894]
[1767678642499,0.71614826,3216.2,3215.5,0.99185894]
[1767678644177,4.05258733,3216.3,3215.5,0.99185894]
[1767678644382,3.10930244,3216.2,3215.7,0.99185894]
[1767678645094,6.21860488,3216.2,3215.7,0.99185894]
[1767678645588,6.21860488,3216.2,3215.8,0.002]
[1767678645788,0.001,3215.9,3215.8,0.002]
[1767678648205,3.10906603,3216.4,3215.8,0.99385894]
[1767678648505,0.001,3216.9,3215.8,0.99385894]
[1767678648506,7.16070944,3216.8,3215.8,0.99385894]
[1767678648702,3.75072296,3216.9,3215.8,0.99385894]
[1767678649075,7.8026965,3216.9,3215.8,0.99385894]
[1767678649294,7.8026965,3216.9,3216.0,0.99185894]
[1767678649481,1.72362023,3216.8,3216.0,1.80685894]
[1767678649681,1.72362023,3216.8,3216.1,0.99185894]
[1767678652509,0.94335058,3216.6,3215.8,0.99385894]
[1767678652716,0.94335058,3216.6,3215.9,0.815]
[1767678653085,0.94335058,3216.6,3215.9,1.80685894]
[1767678654914,4.05231408,3216.6,3215.9,1.80685894]
[1767678655115,4.05231408,3216.6,3215.9,1.98774483]
[1767678655614,0.9521811,3216.5,3215.8,0.002]
[1767678655991,3.10886208,3216.7,3215.8,0.96109406]
[1767678656921,6.21772416,3216.7,3215.8,0.96109406]
[1767678658206,0.001,3216.5,3215.8,0.96109406]
[1767678658394,0.001,3216.5,3215.8,1.13870347]
[1767678660697,0.001,3216.5,3215.8,0.96109406]
[1767678661396,0.001,3216.5,3216.0,0.90159887]
[1767678661597,0.001,3216.5,3216.2,0.90159887]
[1767678663427,1.5942811,3216.9,3216.2,0.90159887]
[1767678663428,3.10961419,3216.9,3216.3,0.90159887]
[1767678665003,0.91158353,3216.8,3216.2,0.815]
[1767678665206,3.10961419,3216.9,3216.2,1.88825876]
[1767678665724,3.10961419,3216.9,3216.3,0.90159887]
[1767678666027,0.001,3216.9,3216.3,0.90159887]
[1767678667600,0.91158353,3217.4,3216.4,0.90159887]
[1767678667801,0.001,3217.6,3216.4,0.90159887]
[1767678668002,3.10801746,3217.5,3216.6,0.90159887]
[1767678668202,3.10801746,3217.5,3216.8,0.90159887]
[1767678668639,3.10801746,3217.5,3216.5,0.8647486]
[1767678668640,0.91158353,3217.4,3216.5,0.8647486]
[1767678668926,1.00482507,3217.4,3216.7,0.815]
[1767678669298,0.91158353,3217.2,3216.7,0.815]
[1767678669520,3.10819631,3217.3,3216.7,0.815]
[1767678669821,0.91158353,3217.2,3216.6,0.815]
[1767678671913,0.91158353,3217.2,3216.5,0.90359887]
[1767678672123,0.91158353,3217.2,3216.6,0.815]
[1767678672303,0.91158353,3217.2,3216.7,0.17185989]
[1767678673029,4.01990597,3217.2,3216.7,0.17185989]
[1767678673606,4.01990597,3217.2,3216.1,0.002]
[1767678673607,0.91158353,3217.1,3216.1,0.002]
[1767678673806,1.00482507,3217.1,3216.1,0.002]
[1767678674631,0.91158353,3216.9,3216.1,0.002]
[1767678675829,3.10848616,3217.0,3216.1,0.90359887]
[1767678676030,3.10848616,3217.0,3216.3,0.90159887]
[1767678676230,4.02006969,3217.0,3216.3,0.90159887]
[1767678676432,0.91158353,3216.9,3216.1,0.90359887]
[1767678676747,0.91158353,3216.7,3216.1,0.90359887]
[1767678676911,0.91158353,3216.7,3215.8,0.002]
[1767678677239,0.91158353,3216.5,3215.8,0.002]
[1767678678728,4.02057852,3216.5,3215.8,0.90359887]
[1767678682732,4.02057852,3216.5,3216.1,0.002]
[1767678685136,0.91158353,3216.5,3216.1,0.002]
[1767678686013,4.0205595,3216.5,3216.1,0.002]
[1767678686213,4.77369624,3216.5,3216.1,0.002]
[1767678689738,1.66472027,3216.5,3216.1,0.002]
[1767678690125,0.75313674,3216.5,3216.1,0.002]
[1767678691014,0.75313674,3216.5,3216.1,0.94384493]
[1767678691226,3.1088417,3216.7,3216.1,0.94384493]
[1767678691521,6.21768539,3216.7,3216.1,0.94384493]
[1767678692744,0.94979165,3216.4,3216.1,0.002]
[1767678695021,0.001,3216.4,3216.1,0.002]
[1767678695947,0.001,3216.4,3216.1,0.94384493]
[1767678702259,0.001,3216.4,3216.1,0.002]
[1767678704257,0.95079165,3216.4,3216.1,0.002]
[1767678704427,0.95079165,3216.4,3215.8,0.817]
[1767678704750,0.95079165,3216.4,3215.8,0.002]
[1767678707057,3.1091627,3216.3,3215.8,0.002]
[1767678707356,0.94979165,3216.2,3215.8,0.002]
[1767678707862,0.001,3216.1,3215.8,0.002]
[1767678709128,3.11035605,3216.1,3215.8,0.002]
[1767678709324,3.69669907,3216.1,3215.8,0.002]
[1767678709566,4.64649072,3216.1,3215.8,0.002]
[1767678711761,0.94979165,3216.0,3215.8,0.002]
[1767678713258,4.05925363,3216.0,3215.8,0.002]
[1767678714238,0.94979165,3216.0,3215.8,0.002]
[1767678714773,4.05925582,3216.0,3215.8,0.002]
[1767678715938,3.10946417,3216.0,3215.8,0.002]
[1767678717271,3.88300216,3216.0,3215.8,0.002]
[1767678719965,0.77353799,3216.0,3215.8,0.002]
[1767678720267,0.58734302,3216.1,3215.8,0.002]
[1767678720484,0.58734302,3216.1,3215.8,0.96490113]
[1767678720662,0.001,3216.1,3215.8,0.96490113]
[1767678722287,0.001,3216.4,3216.1,0.99627918]
[1767678724897,0.001,3216.4,3215.8,0.002]
[1767678725102,0.9330341,3216.4,3215.8,0.002]
[1767678727069,0.001,3216.4,3215.8,0.99827918]
[1767678727270,0.001,3216.4,3216.0,0.99627918]
[1767678728597,0.001,3216.4,3215.9,0.18132792]
[1767678728781,0.001,3216.4,3215.9,1.1776071]
[1767678732111,0.001,3216.4,3216.1,0.99827918]
[1767678732801,0.001,3216.4,3216.1,0.002]
[1767678733106,0.9330341,3216.4,3216.1,0.002]
[1767678734512,0.001,3216.4,3216.1,0.002]
[1767678737387,3.11006603,3216.4,3216.1,0.002]
[1767678737802,0.9320341,3216.3,3216.1,0.002]
[1767678738001,0.9320341,3216.3,3215.5,0.002]
[1767678738510,0.9320341,3216.1,3215.5,0.002]
[1767678738804,1.02527564,3216.1,3215.5,0.002]
[1767678739700,4.04148683,3216.0,3215.5,0.002]
[1767678739895,4.75656326,3216.0,3215.5,0.002]
[1767678740597,1.64711053,3216.0,3215.5,0.002]
[1767678742408,0.71507643,3216.0,3215.5,0.002]
[1767678743817,3.82520904,3216.4,3215.5,0.99827918]
[1767678744402,3.82520904,3216.4,3215.8,0.002]
[1767678744723,0.001,3216.1,3216.0,0.01760822]
[1767678744917,0.001,3216.1,3216.0,1.0138874]
[1767678745219,0.001,3216.1,3216.0,0.01760822]
[1767678749904,0.001,3216.1,3216.0,1.0138874]
[1767678751224,0.001,3216.4,3216.1,0.92194386]
[1767678753094,0.90339516,3217.1,3216.3,0.92194386]
[1767678753289,3.10854294,3217.0,3216.3,0.92194386]
[1767678754188,3.10854294,3217.0,3216.3,1.09563825]
[1767678757331,0.001,3216.7,3216.3,1.09563825]
[1767678757628,0.90439516,3216.7,3216.0,0.01760822]
[1767678757825,0.001,3216.7,3216.0,0.93955208]
[1767678764331,0.90439516,3216.7,3216.0,0.01760822]
[1767678764531,4.01236453,3216.5,3216.0,0.01760822]
[1767678764733,0.90339516,3216.5,3216.0,0.01760822]
[1767678765143,0.90339516,3216.5,3215.8,1.73894386]
[1767678765644,0.90339516,3216.5,3215.9,0.92194386]
[1767678766442,3.10887634,3216.6,3215.9,0.92194386]
[1767678767343,1.61657056,3216.7,3215.9,0.92194386]
[1767678767344,4.72538163,3216.7,3215.9,0.92194386]
[1767678767646,0.001,3216.7,3215.9,1.09583825]
[1767678768848,0.001,3216.7,3216.1,0.92194386]
[1767678769217,0.001,3216.7,3216.2,0.002]
[1767678770935,0.001,3216.7,3216.2,0.95503257]
[1767678773031,0.001,3216.7,3216.2,0.92394386]
[1767678774563,0.001,3216.7,3216.2,0.95503645]
[1767678774774,0.001,3216.7,3216.2,0.92394386]
[1767678777656,0.96244998,3216.7,3216.2,0.002]
[1767678779754,0.001,3216.7,3216.2,0.98988252]
[1767678779957,0.001,3216.7,3216.2,1.17037077]
[1767678780254,0.96144998,3217.4,3216.6,0.98788252]
[1767678780977,0.96144998,3217.3,3216.6,0.98788252]
[1767678781138,0.96144998,3217.3,3216.4,1.79146171]
[1767678781339,0.96144998,3217.3,3216.4,1.98885671]
[1767678782875,0.96144998,3217.3,3216.2,0.002]
[1767678782876,0.97121624,3217.1,3216.2,0.97846171]
[1767678783162,0.97121624,3217.1,3216.2,0.002]
[1767678783943,0.97121624,3217.1,3216.2,0.97846171]
[1767678784770,0.97121624,3217.5,3216.2,0.97846171]
[1767678785967,0.97121624,3217.4,3216.3,0.97646171]
[1767678786171,0.97121624,3217.4,3216.5,0.97646171]
[1767678786474,0.97221624,3217.6,3216.6,0.97646171]
[1767678787950,4.08014648,3217.6,3216.6,0.97646171]
[1767678788278,0.97221624,3217.6,3216.7,0.97646171]
[1767678788466,0.001,3217.6,3216.9,0.97646171]
[1767678789679,0.001,3217.6,3217.1,0.97646171]
[1767678794072,0.001,3217.3,3217.1,0.97646171]
[1767678794267,3.10580126,3218.1,3217.3,0.97646171]
[1767678794677,0.97121624,3218.0,3217.3,0.97646171]
[1767678794855,0.97121624,3217.8,3217.0,0.814]
[1767678795786,0.97121624,3217.8,3217.1,0.97646171]
[1767678796585,0.97121624,3217.7,3217.1,0.97646171]
[1767678796898,0.97121624,3217.7,3216.9,0.814]
[1767678797703,0.97121624,3217.7,3216.9,0.99304617]
[1767678798198,1.06445778,3217.5,3216.2,0.002]
[1767678798397,0.97121624,3217.2,3216.2,0.002]
[1767678798591,0.97121624,3217.0,3216.2,0.002]
[1767678799497,0.97121624,3217.0,3215.9,0.002]
[1767678800697,0.97121624,3216.8,3215.9,0.002]
[1767678801003,0.97121624,3216.6,3215.9,0.002]
[1767678802089,1.06445778,3216.6,3215.5,0.002]
[1767678802293,0.97121624,3216.3,3215.4,1e-08]
[1767678802824,0.97121624,3216.1,3215.1,0.97646171]
[1767678803119,0.97121624,3216.1,3215.0,0.97846171]
[1767678803417,0.97121624,3215.9,3215.0,0.002]
[1767678804892,0.97121624,3215.7,3215.0,0.002]
[1767678805803,6.21929224,3215.8,3214.5,0.97783934]
[1767678805804,0.97121624,3215.5,3214.5,0.97783934]
[1767678806110,0.97121624,3215.5,3214.5,0.00137763]
[1767678806313,0.97121624,3215.1,3214.2,0.002]
[1767678807317,0.97121624,3214.9,3214.2,0.002]
[1767678808591,0.97121624,3214.9,3214.2,0.97846171]
[1767678808794,3.1104199,3215.0,3214.2,0.97846171]
[1767678809189,0.97121624,3215.0,3214.2,0.97846171]
[1767678809396,3.11035677,3215.1,3214.2,0.97846171]
[1767678809828,0.97121624,3215.9,3214.4,0.97646171]
[1767678809997,0.97121624,3215.9,3214.6,0.97646171]
[1767678810198,0.97121624,3215.8,3214.6,0.97646171]
[1767678810709,0.97121624,3215.8,3214.3,1.79146171]
[1767678810933,0.97121624,3215.8,3214.4,0.97646171]
[1767678811233,0.95916728,3215.6,3214.4,0.97646171]
[1767678811433,0.95916728,3215.6,3214.5,0.17914617]
[1767678813524,4.63935054,3215.8,3214.5,0.17914617]
[1767678813525,0.95916728,3215.4,3214.5,0.17914617]
[1767678815529,0.95916728,3215.3,3214.5,1.17729]
[1767678815903,3.10997777,3215.5,3214.5,1.17729]
[1767678816105,4.06914505,3215.5,3214.5,1.17729]
[1767678816307,4.06914505,3215.5,3214.7,0.99814383]
[1767678816643,7.17916747,3215.5,3214.7,0.99814383]
[1767678817541,4.06914505,3215.5,3214.7,0.99814383]
[1767678818813,0.95916728,3215.4,3214.5,1.17729]
[1767678819208,3.10997777,3215.5,3214.6,1.19737283]
[1767678819512,3.10997777,3215.5,3214.8,1.00014383]
[1767678820443,0.95916728,3215.4,3214.8,0.002]
[1767678821052,3.10997777,3215.5,3214.8,1.00014383]
[1767678821246,6.22000019,3215.5,3214.8,1.00014383]
[1767678821938,7.69986093,3215.5,3214.8,1.00014383]
[1767678822337,0.95916728,3215.4,3214.8,0.002]
[1767678825046,0.95916728,3215.2,3214.8,0.002]
[1767678826821,0.95916728,3215.2,3214.5,0.002]
[1767678827022,0.95916728,3215.0,3214.5,0.002]
[1767678827251,0.95916728,3214.9,3214.5,0.002]
[1767678828254,0.95916728,3215.1,3214.5,1.00014383]
[1767678828430,0.95916728,3215.4,3214.7,0.99814383]
[1767678828751,0.95916728,3216.1,3215.0,0.99814383]
[1767678829046,1.67693588,3216.0,3215.0,0.99814383]
[1767678829218,3.10948997,3216.0,3215.2,0.99814383]
[1767678829418,4.06855847,3216.1,3215.2,0.99814383]
[1767678829614,7.17794966,3216.1,3215.2,0.99814383]
[1767678829852,10.85813292,3216.1,3215.2,0.99814383]
[1767678830051,1.08581329,3216.0,3215.2,0.99814383]
[1767678830546,6.21813206,3216.4,3215.3,0.99814383]
[1767678830745,0.95916728,3216.3,3215.1,10.31659183]
[1767678830947,0.95916728,3216.3,3215.2,0.815]
[1767678831137,0.001,3216.5,3215.2,0.815]
[1767678831138,0.95916728,3216.1,3215.2,0.815]
[1767678831345,6.21851874,3216.2,3215.3,1.17945821]
[1767678831957,0.001,3216.1,3215.3,1.17945821]
[1767678832851,0.96016728,3216.1,3215.3,0.18131438]
[1767678833063,0.96016728,3216.1,3215.0,0.99814383]
[1767678833256,0.95916728,3215.9,3215.0,1.81314383]
[1767678834738,0.95916728,3215.9,3215.0,0.99814383]
[1767678835024,0.95916728,3215.9,3215.0,1.81314383]
[1767678835336,4.06878307,3215.9,3215.0,1.81314383]
[1767678835658,4.06878307,3215.9,3215.1,0.95048458]
[1767678835874,0.001,3216.1,3215.1,0.9815878]
[1767678836041,3.11038896,3216.1,3215.1,0.9815878]
[1767678836360,3.11038896,3216.1,3215.1,0.95048458]
[1767678836563,3.11038896,3216.1,3215.0,0.99631438]
[1767678836564,0.001,3216.1,3215.3,0.95048458]
[1767678836853,0.001,3216.5,3215.7,0.95048458]
[1767678837055,0.001,3216.5,3215.8,0.95048458]
[1767678838726,0.001,3216.5,3215.7,0.815]
[1767678838934,0.97613835,3216.5,3215.5,0.815]
[1767678839174,0.97613835,3216.5,3215.4,0.815]
[1767678839847,7.19346375,3216.3,3215.3,0.95048458]
[1767678840029,0.97513835,3216.1,3215.2,0.95048458]
[1767678840232,0.82191207,3216.2,3215.2,0.95048458]
[1767678840652,0.72867053,3216.2,3215.2,0.95048458]
[1767678840862,3.10909778,3216.4,3215.4,0.95048458]
[1767678841050,3.10909778,3216.4,3215.6,0.96769793]
[1767678841253,6.21819556,3216.4,3215.6,0.96769793]
[1767678841566,6.21819556,3216.4,3214.5,0.002]
[1767678841567,0.99889421,3216.1,3214.5,0.002]
[1767678841768,0.09324154,3215.8,3214.7,0.96769793]
[1767678841940,6.21987248,3215.5,3214.7,0.96769793]
[1767678842143,6.93268388,3215.5,3214.7,0.96769793]
[1767678842876,6.93268388,3215.5,3214.5,0.96969793]
[1767678843361,3.82274764,3215.5,3214.5,0.96969793]